[Event "Titled Tuesday Blitz February 14 Early 2023"]
[White "Cori T., Deysi"]
[Black "Kanyamarala, Trisha"]
[WhiteFideId "3801934"]
[BlackFideId "45004722"]
[WhiteElo "2362"]
[BlackElo "2278"]
[Result "1-0"]
[Round "04"]
[TimeControl "180+2"]
[Date "2023.02.15"]
[WhiteClock "0:01:16"]
[BlackClock "0:00:06"]

1. Nf3 {[%clk 0:03:00]}  d5 {[%clk 0:02:59]} 2. e3 {[%clk 0:03:00]}  Nf6 {[%clk 0:02:54]} 3. c4 {[%clk 0:03:01]}  e6 {[%clk 0:02:51]} 4. d4 {[%clk 0:03:01]}  Bb4+ {[%clk 0:02:41]} 5. Bd2 {[%clk 0:03:00]}  Bxd2+ {[%clk 0:02:39]} 6. Nbxd2 {[%clk 0:02:59]}  O-O {[%clk 0:02:39]} 7. Bd3 {[%clk 0:02:59]}  b6 {[%clk 0:02:38]} 8. O-O {[%clk 0:02:59]}  Bb7 {[%clk 0:02:38]} 9. cxd5 {[%clk 0:02:59]}  exd5 {[%clk 0:02:38]} 10. Ne5 {[%clk 0:02:59]}  Nbd7 {[%clk 0:02:38]} 11. f4 {[%clk 0:02:59]}  c5 {[%clk 0:02:38]} 12. Rc1 {[%clk 0:02:59]}  Re8 {[%clk 0:02:38]} 13. Qf3 {[%clk 0:02:59]}  Rc8 {[%clk 0:02:27]} 14. Qh3 {[%clk 0:02:59]}  Nf8 {[%clk 0:02:22]} 15. Ndf3 {[%clk 0:02:38]}  cxd4 {[%clk 0:02:11]} 16. Nxd4 {[%clk 0:02:26]}  Ng6 {[%clk 0:02:02]} 17. Bb5 {[%clk 0:02:17]}  Re7 {[%clk 0:01:46]} 18. Ndc6 {[%clk 0:02:14]}  Bxc6 {[%clk 0:01:23]} 19. Nxc6 {[%clk 0:02:14]}  Rxc6 {[%clk 0:01:12]} 20. Rxc6 {[%clk 0:02:13]}  Re8 {[%clk 0:01:04]} 21. Rfc1 {[%clk 0:02:11]}  Qe7 {[%clk 0:01:02]} 22. Rc8 {[%clk 0:02:10]}  Rxc8 {[%clk 0:00:58]} 23. Qxc8+ {[%clk 0:02:09]}  Nf8 {[%clk 0:00:58]} 24. Qc3 {[%clk 0:02:06]}  Ne4 {[%clk 0:00:53]} 25. Qe5 {[%clk 0:02:01]}  Qh4 {[%clk 0:00:49]} 26. Rf1 {[%clk 0:01:52]}  Nf6 {[%clk 0:00:40]} 27. Qg5 {[%clk 0:01:49]}  Qxg5 {[%clk 0:00:37]} 28. fxg5 {[%clk 0:01:50]}  Ng4 {[%clk 0:00:37]} 29. Be8 {[%clk 0:01:45]}  f6 {[%clk 0:00:24]} 30. Rf4 {[%clk 0:01:35]}  Nxe3 {[%clk 0:00:21]} 31. gxf6 {[%clk 0:01:35]}  gxf6 {[%clk 0:00:20]} 32. Rxf6 {[%clk 0:01:35]}  Ng4 {[%clk 0:00:17]} 33. Rd6 {[%clk 0:01:32]}  Ne3 {[%clk 0:00:16]} 34. Bc6 {[%clk 0:01:27]}  Ng6 {[%clk 0:00:13]} 35. Bxd5+ {[%clk 0:01:26]}  Kg7 {[%clk 0:00:14]} 36. Bf3 {[%clk 0:01:25]}  Nf4 {[%clk 0:00:09]} 37. Rd7+ {[%clk 0:01:23]}  Kf6 {[%clk 0:00:09]} 38. Rxh7 {[%clk 0:01:22]}  Nd3 {[%clk 0:00:09]} 39. Rxa7 {[%clk 0:01:21]}  Nxb2 {[%clk 0:00:09]} 40. Ra6 {[%clk 0:01:20]}  Nec4 {[%clk 0:00:09]} 41. Bd5 {[%clk 0:01:17]}  Ne3 {[%clk 0:00:06]} 42. Rxb6+ {[%clk 0:01:17]}  Ke5 {[%clk 0:00:06]} 43. Rxb2 {[%clk 0:01:16]} 1-0


[Site "https://www.chess.com"]

[Event "Titled Tuesday Blitz February 14 Early 2023"]
[White "Ezat, Mohamed"]
[Black "Avazkhonov, Alikhon"]
[WhiteFideId "10600906"]
[BlackFideId "14208504"]
[WhiteElo "2402"]
[BlackElo "1538"]
[Result "1-0"]
[Round "04"]
[TimeControl "180+2"]
[Date "2023.02.15"]
[WhiteClock "0:00:57"]
[BlackClock "0:00:02"]

1. d4 {[%clk 0:02:58]}  Nf6 {[%clk 0:02:37]} 2. Nf3 {[%clk 0:02:56]}  e6 {[%clk 0:02:38]} 3. h4 {[%clk 0:02:54]}  d5 {[%clk 0:02:34]} 4. h5 {[%clk 0:02:52]}  b6 {[%clk 0:02:25]} 5. a3 {[%clk 0:02:52]}  Bb7 {[%clk 0:02:25]} 6. Nc3 {[%clk 0:02:52]}  c5 {[%clk 0:02:21]} 7. Bg5 {[%clk 0:02:49]}  h6 {[%clk 0:02:18]} 8. Bxf6 {[%clk 0:02:37]}  Qxf6 {[%clk 0:02:15]} 9. e4 {[%clk 0:02:37]}  a6 {[%clk 0:01:21]} 10. exd5 {[%clk 0:02:17]}  exd5 {[%clk 0:01:22]} 11. Be2 {[%clk 0:02:02]}  c4 {[%clk 0:01:04]} 12. Ne5 {[%clk 0:01:55]}  Nd7 {[%clk 0:00:58]} 13. Nxd7 {[%clk 0:01:52]}  Kxd7 {[%clk 0:00:59]} 14. O-O {[%clk 0:01:50]}  Bd6 {[%clk 0:00:59]} 15. Bf3 {[%clk 0:01:50]}  Qg5 {[%clk 0:00:28]} 16. b3 {[%clk 0:01:30]}  cxb3 {[%clk 0:00:19]} 17. Rb1 {[%clk 0:01:23]}  bxc2 {[%clk 0:00:03]} 18. Qxc2 {[%clk 0:01:22]}  Qf4 {[%clk 0:00:04]} 19. Rfe1 {[%clk 0:01:19]}  Qh2+ {[%clk 0:00:04]} 20. Kf1 {[%clk 0:01:19]}  a5 {[%clk 0:00:02]} 21. Qf5+ {[%clk 0:01:16]}  Kc7 {[%clk 0:00:01]} 22. Nb5+ {[%clk 0:01:16]}  Kd8 {[%clk 0:00:01]} 23. Nxd6 {[%clk 0:01:15]}  Ba6+ {[%clk 0:00:02]} 24. Nb5 {[%clk 0:01:13]}  Bxb5+ {[%clk 0:00:02]} 25. Rxb5 {[%clk 0:01:12]}  Qh1+ {[%clk 0:00:03]} 26. Ke2 {[%clk 0:01:08]}  Re8+ {[%clk 0:00:04]} 27. Kd3 {[%clk 0:01:08]}  Qxe1 {[%clk 0:00:05]} 28. Rxd5+ {[%clk 0:01:01]}  Kc7 {[%clk 0:00:03]} 29. Rd7+ {[%clk 0:00:59]}  Kc8 {[%clk 0:00:02]} 30. Re7+ {[%clk 0:00:58]}  Kb8 {[%clk 0:00:02]} 31. Qf4+ {[%clk 0:00:57]} 1-0


[Site "https://www.chess.com"]

[Event "Titled Tuesday Blitz February 14 Early 2023"]
[White "Injac, Teodora"]
[Black "Tiarks, Jann-Christian"]
[WhiteFideId "932400"]
[BlackFideId "12951595"]
[WhiteElo "2391"]
[BlackElo "2222"]
[Result "0-1"]
[Round "04"]
[TimeControl "180+2"]
[Date "2023.02.15"]
[WhiteClock "0:00:01"]
[BlackClock "0:00:24"]

1. d4 {[%clk 0:03:00]}  c5 {[%clk 0:02:59]} 2. d5 {[%clk 0:03:00]}  d6 {[%clk 0:02:59]} 3. Nc3 {[%clk 0:03:00]}  e5 {[%clk 0:03:00]} 4. e4 {[%clk 0:03:00]}  Nf6 {[%clk 0:03:00]} 5. Nf3 {[%clk 0:02:55]}  Be7 {[%clk 0:02:59]} 6. Bb5+ {[%clk 0:02:45]}  Nbd7 {[%clk 0:02:59]} 7. a4 {[%clk 0:02:46]}  a6 {[%clk 0:02:58]} 8. Bd3 {[%clk 0:02:44]}  Nf8 {[%clk 0:02:59]} 9. Nd2 {[%clk 0:02:40]}  Ng6 {[%clk 0:02:57]} 10. Nc4 {[%clk 0:02:39]}  O-O {[%clk 0:02:57]} 11. O-O {[%clk 0:02:38]}  Rb8 {[%clk 0:02:52]} 12. a5 {[%clk 0:02:37]}  h6 {[%clk 0:02:43]} 13. Rb1 {[%clk 0:02:35]}  Nh7 {[%clk 0:02:40]} 14. b4 {[%clk 0:02:33]}  cxb4 {[%clk 0:02:38]} 15. Rxb4 {[%clk 0:02:33]}  Bg5 {[%clk 0:02:37]} 16. Ba3 {[%clk 0:02:31]}  Nf4 {[%clk 0:02:34]} 17. Rb6 {[%clk 0:02:20]}  Be7 {[%clk 0:02:22]} 18. Ne2 {[%clk 0:02:04]}  Bg4 {[%clk 0:02:11]} 19. f3 {[%clk 0:02:00]}  Bc8 {[%clk 0:02:06]} 20. Nxf4 {[%clk 0:01:58]}  exf4 {[%clk 0:02:06]} 21. Nxd6 {[%clk 0:01:51]}  Ng5 {[%clk 0:01:41]} 22. c4 {[%clk 0:01:49]}  Bf6 {[%clk 0:01:38]} 23. Bc2 {[%clk 0:01:37]}  Bd7 {[%clk 0:01:30]} 24. Nxb7 {[%clk 0:01:27]}  Qc7 {[%clk 0:01:26]} 25. Bxf8 {[%clk 0:01:20]}  Kxf8 {[%clk 0:01:24]} 26. h4 {[%clk 0:00:46]}  Nh3+ {[%clk 0:01:13]} 27. gxh3 {[%clk 0:00:45]}  Rxb7 {[%clk 0:01:14]} 28. Rxb7 {[%clk 0:00:43]}  Qxb7 {[%clk 0:01:15]} 29. c5 {[%clk 0:00:37]}  Bxh3 {[%clk 0:01:13]} 30. Rf2 {[%clk 0:00:23]}  Qb4 {[%clk 0:01:11]} 31. c6 {[%clk 0:00:06]}  Bd4 {[%clk 0:01:11]} 32. Qe2 {[%clk 0:00:04]}  Qxa5 {[%clk 0:01:05]} 33. Kh2 {[%clk 0:00:04]}  Bxf2 {[%clk 0:01:03]} 34. Qxf2 {[%clk 0:00:05]}  Bc8 {[%clk 0:01:02]} 35. Qe2 {[%clk 0:00:05]}  Qc3 {[%clk 0:00:56]} 36. Bd3 {[%clk 0:00:05]}  a5 {[%clk 0:00:56]} 37. Bc4 {[%clk 0:00:05]}  Qf6 {[%clk 0:00:48]} 38. Qf2 {[%clk 0:00:03]}  a4 {[%clk 0:00:46]} 39. Qc5+ {[%clk 0:00:03]}  Kg8 {[%clk 0:00:46]} 40. Qf2 {[%clk 0:00:03]}  a3 {[%clk 0:00:46]} 41. e5 {[%clk 0:00:02]}  Qxe5 {[%clk 0:00:46]} 42. Ba2 {[%clk 0:00:01]}  Qf5 {[%clk 0:00:44]} 43. Qd2 {[%clk 0:00:01]}  Qh3+ {[%clk 0:00:44]} 44. Kg1 {[%clk 0:00:02]}  Qg3+ {[%clk 0:00:42]} 45. Qg2 {[%clk 0:00:02]}  Qe1+ {[%clk 0:00:42]} 46. Qf1 {[%clk 0:00:02]}  Qd2 {[%clk 0:00:41]} 47. Qf2 {[%clk 0:00:01]}  Qc1+ {[%clk 0:00:39]} 48. Kh2 {[%clk 0:00:02]}  Qd1 {[%clk 0:00:35]} 49. Qg2 {[%clk 0:00:02]}  Kf8 {[%clk 0:00:30]} 50. h5 {[%clk 0:00:02]}  Bf5 {[%clk 0:00:28]} 51. Qf2 {[%clk 0:00:02]}  Qc1 {[%clk 0:00:24]} 52. Bb3 {[%clk 0:00:01]}  Qb2 {[%clk 0:00:24]} 0-1


[Site "https://www.chess.com"]

[Event "Titled Tuesday Blitz February 14 Early 2023"]
[White "Mouhamad, Joachim"]
[Black "Alinasab, Mobina"]
[WhiteFideId "656410"]
[BlackFideId "12528897"]
[WhiteElo "2238"]
[BlackElo "2347"]
[Result "1-0"]
[Round "04"]
[TimeControl "180+2"]
[Date "2023.02.15"]
[WhiteClock "0:00:17"]
[BlackClock "0:00:01"]

1. e4 {[%clk 0:03:00]}  c5 {[%clk 0:02:58]} 2. Nf3 {[%clk 0:02:58]}  e6 {[%clk 0:02:57]} 3. d4 {[%clk 0:02:59]}  cxd4 {[%clk 0:02:58]} 4. Nxd4 {[%clk 0:03:00]}  Nf6 {[%clk 0:02:58]} 5. Nc3 {[%clk 0:02:59]}  Nc6 {[%clk 0:02:58]} 6. Ndb5 {[%clk 0:02:59]}  Bb4 {[%clk 0:02:57]} 7. a3 {[%clk 0:03:00]}  Bxc3+ {[%clk 0:02:58]} 8. Nxc3 {[%clk 0:03:00]}  d5 {[%clk 0:02:58]} 9. exd5 {[%clk 0:03:01]}  exd5 {[%clk 0:02:59]} 10. Bd3 {[%clk 0:03:02]}  O-O {[%clk 0:02:59]} 11. O-O {[%clk 0:03:02]}  d4 {[%clk 0:02:59]} 12. Ne2 {[%clk 0:03:01]}  Bg4 {[%clk 0:02:59]} 13. Bg5 {[%clk 0:02:57]}  Bxe2 {[%clk 0:02:57]} 14. Qxe2 {[%clk 0:02:55]}  Re8 {[%clk 0:02:54]} 15. Qf3 {[%clk 0:02:52]}  Ne5 {[%clk 0:02:52]} 16. Qxb7 {[%clk 0:02:49]}  Nxd3 {[%clk 0:02:51]} 17. cxd3 {[%clk 0:02:49]}  Rb8 {[%clk 0:02:50]} 18. Qxa7 {[%clk 0:02:16]}  Rxb2 {[%clk 0:02:41]} 19. a4 {[%clk 0:02:16]}  Qd5 {[%clk 0:02:25]} 20. Bxf6 {[%clk 0:02:13]}  gxf6 {[%clk 0:02:26]} 21. Qc7 {[%clk 0:01:56]}  Re5 {[%clk 0:02:03]} 22. a5 {[%clk 0:01:39]}  Rb7 {[%clk 0:00:49]} 23. Qc8+ {[%clk 0:01:34]}  Kg7 {[%clk 0:00:49]} 24. a6 {[%clk 0:01:33]}  Ra7 {[%clk 0:00:49]} 25. Qb8 {[%clk 0:01:18]}  Ree7 {[%clk 0:00:35]} 26. Qg3+ {[%clk 0:01:17]}  Qg5 {[%clk 0:00:19]} 27. Qd6 {[%clk 0:00:56]}  Re6 {[%clk 0:00:16]} 28. Qb8 {[%clk 0:00:45]}  Raxa6 {[%clk 0:00:16]} 29. Rac1 {[%clk 0:00:37]}  Rac6 {[%clk 0:00:15]} 30. Ra1 {[%clk 0:00:35]}  Rb6 {[%clk 0:00:15]} 31. Qd8 {[%clk 0:00:32]}  Rbd6 {[%clk 0:00:14]} 32. Qc8 {[%clk 0:00:31]}  Rc6 {[%clk 0:00:15]} 33. Qd7 {[%clk 0:00:32]}  Red6 {[%clk 0:00:15]} 34. Qe7 {[%clk 0:00:31]}  Qe5 {[%clk 0:00:14]} 35. Qb7 {[%clk 0:00:31]}  Rb6 {[%clk 0:00:14]} 36. Qc7 {[%clk 0:00:30]}  Rdc6 {[%clk 0:00:14]} 37. Qd7 {[%clk 0:00:31]}  Rc7 {[%clk 0:00:12]} 38. Qd8 {[%clk 0:00:30]}  Qd6 {[%clk 0:00:13]} 39. Qe8 {[%clk 0:00:29]}  Re7 {[%clk 0:00:12]} 40. Qc8 {[%clk 0:00:26]}  Rb8 {[%clk 0:00:12]} 41. Qg4+ {[%clk 0:00:26]}  Kh8 {[%clk 0:00:10]} 42. Ra4 {[%clk 0:00:27]}  Rd7 {[%clk 0:00:08]} 43. h3 {[%clk 0:00:26]}  Rbd8 {[%clk 0:00:07]} 44. Qf5 {[%clk 0:00:25]}  Qe6 {[%clk 0:00:07]} 45. Qf4 {[%clk 0:00:25]}  Qe5 {[%clk 0:00:07]} 46. Qf3 {[%clk 0:00:25]}  Qd5 {[%clk 0:00:08]} 47. Qxf6+ {[%clk 0:00:24]}  Kg8 {[%clk 0:00:08]} 48. Re1 {[%clk 0:00:23]}  Rd6 {[%clk 0:00:06]} 49. Qf4 {[%clk 0:00:21]}  Rg6 {[%clk 0:00:06]} 50. Qe4 {[%clk 0:00:21]}  Qxe4 {[%clk 0:00:06]} 51. Rxe4 {[%clk 0:00:21]}  Rgd6 {[%clk 0:00:06]} 52. g4 {[%clk 0:00:22]}  Kg7 {[%clk 0:00:06]} 53. Kg2 {[%clk 0:00:22]}  Kg6 {[%clk 0:00:06]} 54. Kg3 {[%clk 0:00:23]}  f5 {[%clk 0:00:06]} 55. Rf4 {[%clk 0:00:21]}  fxg4 {[%clk 0:00:06]} 56. hxg4 {[%clk 0:00:22]}  h6 {[%clk 0:00:06]} 57. Re4 {[%clk 0:00:22]}  R8d7 {[%clk 0:00:06]} 58. f4 {[%clk 0:00:21]}  Rd8 {[%clk 0:00:06]} 59. Ra5 {[%clk 0:00:16]}  R8d7 {[%clk 0:00:06]} 60. Rae5 {[%clk 0:00:16]}  Rd8 {[%clk 0:00:06]} 61. Re6+ {[%clk 0:00:15]}  Rxe6 {[%clk 0:00:04]} 62. Rxe6+ {[%clk 0:00:16]}  Kg7 {[%clk 0:00:04]} 63. f5 {[%clk 0:00:17]}  Rd7 {[%clk 0:00:04]} 64. Kf4 {[%clk 0:00:17]}  Rd5 {[%clk 0:00:03]} 65. Re5 {[%clk 0:00:17]}  Rd7 {[%clk 0:00:03]} 66. Re6 {[%clk 0:00:17]}  Rd5 {[%clk 0:00:02]} 67. Ke4 {[%clk 0:00:17]}  Rd7 {[%clk 0:00:02]} 68. Rg6+ {[%clk 0:00:17]}  Kh7 {[%clk 0:00:03]} 69. Re6 {[%clk 0:00:17]}  Kg7 {[%clk 0:00:02]} 70. Re5 {[%clk 0:00:18]}  Kf6 {[%clk 0:00:02]} 71. Re6+ {[%clk 0:00:18]}  Kg5 {[%clk 0:00:02]} 72. Rg6+ {[%clk 0:00:18]}  Kh4 {[%clk 0:00:02]} 73. Ke5 {[%clk 0:00:19]}  Re7+ {[%clk 0:00:02]} 74. Kxd4 {[%clk 0:00:19]}  h5 {[%clk 0:00:02]} 75. gxh5 {[%clk 0:00:17]}  Kxh5 {[%clk 0:00:03]} 76. Rg1 {[%clk 0:00:17]}  Re2 {[%clk 0:00:02]} 77. f6 {[%clk 0:00:16]}  Re8 {[%clk 0:00:02]} 78. Kd5 {[%clk 0:00:16]}  Kh6 {[%clk 0:00:01]} 79. Kd6 {[%clk 0:00:16]}  Re3 {[%clk 0:00:01]} 80. f7 {[%clk 0:00:16]}  Rxd3+ {[%clk 0:00:01]} 81. Ke7 {[%clk 0:00:16]}  Re3+ {[%clk 0:00:02]} 82. Kf8 {[%clk 0:00:17]}  Rf3 {[%clk 0:00:01]} 83. Kg8 {[%clk 0:00:17]} 1-0


[Site "https://www.chess.com"]

[Event "Titled Tuesday Blitz February 14 Early 2023"]
[White "Melian, Juan Sebastian"]
[Black "Kielinkei"]
[WhiteFideId "3706575"]
[WhiteElo "2293"]
[BlackElo "2360"]
[Result "1-0"]
[Round "04"]
[TimeControl "180+2"]
[Date "2023.02.15"]
[WhiteClock "0:00:52"]
[BlackClock "0:00:38"]

1. e4 {[%clk 0:03:00]}  c5 {[%clk 0:02:57]} 2. Nf3 {[%clk 0:02:59]}  d6 {[%clk 0:02:55]} 3. Bb5+ {[%clk 0:02:55]}  Nd7 {[%clk 0:02:54]} 4. c3 {[%clk 0:02:55]}  Nf6 {[%clk 0:02:50]} 5. Bd3 {[%clk 0:02:50]}  b5 {[%clk 0:02:33]} 6. Bxb5 {[%clk 0:02:39]}  Bb7 {[%clk 0:02:29]} 7. d3 {[%clk 0:02:38]}  e6 {[%clk 0:02:22]} 8. O-O {[%clk 0:02:37]}  Be7 {[%clk 0:02:22]} 9. Nbd2 {[%clk 0:02:38]}  O-O {[%clk 0:02:22]} 10. Re1 {[%clk 0:02:38]}  a6 {[%clk 0:02:20]} 11. Bc4 {[%clk 0:02:36]}  d5 {[%clk 0:02:18]} 12. Bb3 {[%clk 0:02:33]}  a5 {[%clk 0:02:13]} 13. exd5 {[%clk 0:02:25]}  exd5 {[%clk 0:02:13]} 14. d4 {[%clk 0:02:26]}  cxd4 {[%clk 0:02:06]} 15. Nxd4 {[%clk 0:02:26]}  Bd6 {[%clk 0:01:58]} 16. N2f3 {[%clk 0:02:26]}  Ne4 {[%clk 0:01:53]} 17. Nf5 {[%clk 0:02:26]}  Bc5 {[%clk 0:01:48]} 18. Be3 {[%clk 0:02:21]}  Ndf6 {[%clk 0:01:45]} 19. Bd4 {[%clk 0:02:07]}  Qd7 {[%clk 0:01:40]} 20. Nxg7 {[%clk 0:01:56]}  Kxg7 {[%clk 0:01:35]} 21. Rxe4 {[%clk 0:01:55]}  Be7 {[%clk 0:01:22]} 22. Qd2 {[%clk 0:01:34]}  h6 {[%clk 0:01:07]} 23. Rf4 {[%clk 0:01:19]}  Ra6 {[%clk 0:00:57]} 24. Re1 {[%clk 0:01:12]}  Re8 {[%clk 0:00:55]} 25. Nh4 {[%clk 0:01:08]}  Bd8 {[%clk 0:00:52]} 26. Nf5+ {[%clk 0:01:03]}  Kh7 {[%clk 0:00:47]} 27. Rxe8 {[%clk 0:01:01]}  Qxe8 {[%clk 0:00:46]} 28. Rh4 {[%clk 0:00:53]}  h5 {[%clk 0:00:38]} 29. Qh6+ {[%clk 0:00:52]} 1-0


[Site "https://www.chess.com"]

[Event "Titled Tuesday Blitz February 14 Early 2023"]
[White "Pinheiro, Iung Alicio de O."]
[Black "Jimenez Garcia, Emmanuel"]
[WhiteFideId "2104350"]
[BlackFideId "6504779"]
[WhiteElo "2306"]
[BlackElo "2410"]
[Result "1-0"]
[Round "04"]
[TimeControl "180+2"]
[Date "2023.02.15"]
[WhiteClock "0:00:29"]
[BlackClock "0:00:04"]

1. d4 {[%clk 0:03:00]}  g6 {[%clk 0:02:58]} 2. e4 {[%clk 0:02:59]}  Bg7 {[%clk 0:02:59]} 3. Nc3 {[%clk 0:02:59]}  c6 {[%clk 0:03:00]} 4. Bf4 {[%clk 0:02:53]}  d5 {[%clk 0:02:59]} 5. Qd2 {[%clk 0:02:52]}  dxe4 {[%clk 0:02:57]} 6. O-O-O {[%clk 0:02:53]}  Nd7 {[%clk 0:02:46]} 7. Nxe4 {[%clk 0:02:37]}  Ngf6 {[%clk 0:02:46]} 8. Ng3 {[%clk 0:02:33]}  h5 {[%clk 0:02:38]} 9. h4 {[%clk 0:02:27]}  Nb6 {[%clk 0:02:37]} 10. Nf3 {[%clk 0:02:21]}  Qd5 {[%clk 0:02:34]} 11. Kb1 {[%clk 0:02:19]}  Be6 {[%clk 0:02:34]} 12. b3 {[%clk 0:02:12]}  Ng4 {[%clk 0:00:42]} 13. c4 {[%clk 0:02:00]}  Qd7 {[%clk 0:00:36]} 14. Ng5 {[%clk 0:01:42]}  O-O-O {[%clk 0:00:23]} 15. f3 {[%clk 0:01:40]}  Nh6 {[%clk 0:00:16]} 16. Qa5 {[%clk 0:01:23]}  Bf5+ {[%clk 0:00:16]} 17. N5e4 {[%clk 0:01:13]}  e5 {[%clk 0:00:16]} 18. Bg5 {[%clk 0:01:12]}  f6 {[%clk 0:00:15]} 19. Bxh6 {[%clk 0:01:09]}  Rxh6 {[%clk 0:00:16]} 20. Qxa7 {[%clk 0:01:09]}  Kc7 {[%clk 0:00:16]} 21. Qa5 {[%clk 0:00:56]}  Ra8 {[%clk 0:00:15]} 22. Qd2 {[%clk 0:00:55]}  Rhh8 {[%clk 0:00:10]} 23. dxe5 {[%clk 0:00:53]}  Qxd2 {[%clk 0:00:11]} 24. Rxd2 {[%clk 0:00:53]}  Bxe4+ {[%clk 0:00:09]} 25. Nxe4 {[%clk 0:00:52]}  f5 {[%clk 0:00:10]} 26. Ng5 {[%clk 0:00:43]}  Rhe8 {[%clk 0:00:09]} 27. f4 {[%clk 0:00:42]}  Nd7 {[%clk 0:00:08]} 28. Be2 {[%clk 0:00:41]}  Bf8 {[%clk 0:00:06]} 29. Bf3 {[%clk 0:00:40]}  Nc5 {[%clk 0:00:06]} 30. Rhd1 {[%clk 0:00:40]}  Kb6 {[%clk 0:00:05]} 31. g3 {[%clk 0:00:37]}  Ka5 {[%clk 0:00:05]} 32. Kb2 {[%clk 0:00:36]}  Kb4 {[%clk 0:00:05]} 33. Bg2 {[%clk 0:00:32]}  Be7 {[%clk 0:00:05]} 34. Nf3 {[%clk 0:00:32]}  Ka5 {[%clk 0:00:02]} 35. Nd4 {[%clk 0:00:31]}  Na6 {[%clk 0:00:03]} 36. a3 {[%clk 0:00:31]}  Kb6 {[%clk 0:00:03]} 37. b4 {[%clk 0:00:30]}  Kc7 {[%clk 0:00:03]} 38. Ne6+ {[%clk 0:00:31]}  Kb8 {[%clk 0:00:04]} 39. Rd7 {[%clk 0:00:30]}  Nxb4 {[%clk 0:00:03]} 40. axb4 {[%clk 0:00:30]}  Bxb4 {[%clk 0:00:04]} 41. Nc7 {[%clk 0:00:29]} 1-0


[Site "https://www.chess.com"]

[Event "Titled Tuesday Blitz February 14 Early 2023"]
[White "Kalajzic, Ivan"]
[Black "Sovetov, Oleksandr"]
[WhiteFideId "14506378"]
[BlackFideId "34105786"]
[WhiteElo "2062"]
[BlackElo "1976"]
[Result "0-1"]
[Round "04"]
[TimeControl "180+2"]
[Date "2023.02.15"]
[WhiteClock "0:00:03"]
[BlackClock "0:00:21"]

1. b3 {[%clk 0:02:53]}  a5 {[%clk 0:02:53]} 2. a3 {[%clk 0:02:53]}  a4 {[%clk 0:02:44]} 3. b4 {[%clk 0:02:53]}  d5 {[%clk 0:02:38]} 4. Bb2 {[%clk 0:02:54]}  Nf6 {[%clk 0:02:39]} 5. e3 {[%clk 0:02:54]}  Bf5 {[%clk 0:02:38]} 6. Nf3 {[%clk 0:02:54]}  e6 {[%clk 0:02:37]} 7. c4 {[%clk 0:02:49]}  c6 {[%clk 0:02:29]} 8. Nc3 {[%clk 0:02:49]}  dxc4 {[%clk 0:02:23]} 9. Bxc4 {[%clk 0:02:48]}  b5 {[%clk 0:02:24]} 10. Be2 {[%clk 0:02:45]}  Bd3 {[%clk 0:02:23]} 11. Ne5 {[%clk 0:02:30]}  Bxe2 {[%clk 0:02:22]} 12. Qxe2 {[%clk 0:02:29]}  Nfd7 {[%clk 0:02:21]} 13. Ne4 {[%clk 0:02:23]}  Nxe5 {[%clk 0:02:17]} 14. Bxe5 {[%clk 0:02:24]}  Qd5 {[%clk 0:02:16]} 15. Bxb8 {[%clk 0:02:17]}  Qxe4 {[%clk 0:02:07]} 16. Bg3 {[%clk 0:02:09]}  Qxg2 {[%clk 0:02:07]} 17. O-O-O {[%clk 0:01:52]}  Qd5 {[%clk 0:02:01]} 18. d4 {[%clk 0:01:46]}  Be7 {[%clk 0:01:52]} 19. Qc2 {[%clk 0:01:37]}  O-O {[%clk 0:01:48]} 20. e4 {[%clk 0:01:33]}  Qd7 {[%clk 0:01:44]} 21. Rhg1 {[%clk 0:01:27]}  Bf6 {[%clk 0:01:36]} 22. e5 {[%clk 0:01:14]}  Bg5+ {[%clk 0:01:32]} 23. f4 {[%clk 0:01:14]}  Bh6 {[%clk 0:01:31]} 24. Kb1 {[%clk 0:01:12]}  Qd5 {[%clk 0:01:25]} 25. Qa2 {[%clk 0:00:41]}  Rfd8 {[%clk 0:01:21]} 26. Qxd5 {[%clk 0:00:40]}  Rxd5 {[%clk 0:01:14]} 27. Kc2 {[%clk 0:00:32]}  Kf8 {[%clk 0:01:04]} 28. Kc3 {[%clk 0:00:32]}  g6 {[%clk 0:01:02]} 29. h4 {[%clk 0:00:29]}  Ke7 {[%clk 0:00:57]} 30. h5 {[%clk 0:00:28]}  Rg8 {[%clk 0:00:56]} 31. hxg6 {[%clk 0:00:27]}  Rxg6 {[%clk 0:00:52]} 32. Bh2 {[%clk 0:00:27]}  Rd8 {[%clk 0:00:48]} 33. Rxg6 {[%clk 0:00:26]}  hxg6 {[%clk 0:00:43]} 34. Kd3 {[%clk 0:00:19]}  Rh8 {[%clk 0:00:42]} 35. Ke4 {[%clk 0:00:17]}  Bg7 {[%clk 0:00:41]} 36. Bg3 {[%clk 0:00:17]}  Rh3 {[%clk 0:00:42]} 37. Rd3 {[%clk 0:00:17]}  f5+ {[%clk 0:00:36]} 38. exf6+ {[%clk 0:00:16]}  Bxf6 {[%clk 0:00:36]} 39. Kf3 {[%clk 0:00:16]}  Rh1 {[%clk 0:00:36]} 40. Kg4 {[%clk 0:00:15]}  Rb1 {[%clk 0:00:34]} 41. Rc3 {[%clk 0:00:15]}  Kd7 {[%clk 0:00:32]} 42. Bh4 {[%clk 0:00:13]}  Rb3 {[%clk 0:00:27]} 43. Rc2 {[%clk 0:00:09]}  Bxh4 {[%clk 0:00:27]} 44. Kxh4 {[%clk 0:00:10]}  Rxa3 {[%clk 0:00:27]} 45. Kg5 {[%clk 0:00:10]}  Rg3+ {[%clk 0:00:27]} 46. Kf6 {[%clk 0:00:10]}  a3 {[%clk 0:00:27]} 47. Re2 {[%clk 0:00:06]}  Rf3 {[%clk 0:00:25]} 48. Kg5 {[%clk 0:00:03]}  Rb3 {[%clk 0:00:23]} 49. Ra2 {[%clk 0:00:03]}  Rxb4 {[%clk 0:00:22]} 50. Kxg6 {[%clk 0:00:03]}  Ra4 {[%clk 0:00:21]} 0-1


[Site "https://www.chess.com"]

[Event "Titled Tuesday Blitz February 14 Early 2023"]
[White "Parpiev, Isaak"]
[Black "Todorovic, Bojan"]
[WhiteFideId "34281576"]
[BlackFideId "917087"]
[WhiteElo "2167"]
[BlackElo "2195"]
[Result "1-0"]
[Round "04"]
[TimeControl "180+2"]
[Date "2023.02.15"]
[WhiteClock "0:00:51"]
[BlackClock "0:00:20"]

1. Nf3 {[%clk 0:03:00]}  Nf6 {[%clk 0:02:58]} 2. g3 {[%clk 0:03:01]}  g6 {[%clk 0:02:57]} 3. Bg2 {[%clk 0:03:01]}  Bg7 {[%clk 0:02:58]} 4. O-O {[%clk 0:03:02]}  O-O {[%clk 0:02:58]} 5. d3 {[%clk 0:03:03]}  c5 {[%clk 0:02:56]} 6. e4 {[%clk 0:03:02]}  Nc6 {[%clk 0:02:55]} 7. Nbd2 {[%clk 0:03:02]}  d6 {[%clk 0:02:54]} 8. c3 {[%clk 0:03:01]}  Rb8 {[%clk 0:02:52]} 9. d4 {[%clk 0:02:59]}  cxd4 {[%clk 0:02:50]} 10. cxd4 {[%clk 0:02:59]}  Bg4 {[%clk 0:02:34]} 11. d5 {[%clk 0:02:48]}  Nd4 {[%clk 0:02:25]} 12. h3 {[%clk 0:02:46]}  Bxf3 {[%clk 0:02:12]} 13. Nxf3 {[%clk 0:02:47]}  Nxf3+ {[%clk 0:02:12]} 14. Bxf3 {[%clk 0:02:45]}  Nd7 {[%clk 0:02:06]} 15. Rb1 {[%clk 0:02:45]}  Qa5 {[%clk 0:02:05]} 16. a3 {[%clk 0:02:42]}  Rfc8 {[%clk 0:02:01]} 17. Bg4 {[%clk 0:02:35]}  Rc7 {[%clk 0:01:56]} 18. b4 {[%clk 0:02:34]}  Qa6 {[%clk 0:01:45]} 19. Be2 {[%clk 0:02:33]}  b5 {[%clk 0:01:29]} 20. h4 {[%clk 0:02:12]}  Nb6 {[%clk 0:01:09]} 21. h5 {[%clk 0:02:02]}  Nc4 {[%clk 0:01:09]} 22. Qd3 {[%clk 0:02:02]}  Qb6 {[%clk 0:01:03]} 23. h6 {[%clk 0:01:58]}  Bf6 {[%clk 0:00:58]} 24. Bf4 {[%clk 0:01:41]}  a6 {[%clk 0:00:53]} 25. Rfc1 {[%clk 0:01:36]}  Ne5 {[%clk 0:00:51]} 26. Qe3 {[%clk 0:01:23]}  Qxe3 {[%clk 0:00:45]} 27. Bxe3 {[%clk 0:01:24]}  Rbc8 {[%clk 0:00:46]} 28. Rxc7 {[%clk 0:01:08]}  Rxc7 {[%clk 0:00:45]} 29. Rc1 {[%clk 0:01:09]}  Nc4 {[%clk 0:00:40]} 30. Bxc4 {[%clk 0:01:08]}  bxc4 {[%clk 0:00:31]} 31. Kf1 {[%clk 0:01:08]}  Bb2 {[%clk 0:00:31]} 32. Rc2 {[%clk 0:00:56]}  Bxa3 {[%clk 0:00:30]} 33. Bd2 {[%clk 0:00:56]}  Kf8 {[%clk 0:00:22]} 34. Ke2 {[%clk 0:00:52]}  Ke8 {[%clk 0:00:21]} 35. Ra2 {[%clk 0:00:52]}  c3 {[%clk 0:00:21]} 36. Rxa3 {[%clk 0:00:51]}  c2 {[%clk 0:00:20]} 1-0


[Site "https://www.chess.com"]